[Event "December 19 Early 2023"]
[Site "https://www.chess.com"]
[Date "2023.12.19"]
[Round "6"]
[White "Rangel, Daniel"]
[Black "Piesik, Piotr"]
[Result "0-1"]
[Board "82"]
[TimeControl "180+1"]
[WhiteFideId "2124475"]
[BlackFideId "1136194"]
[WhiteElo "2267"]
[BlackElo "2319"]
[WhiteTeam "BRA"]
[BlackTeam "CZE"]
[WhiteClock "0:00:07"]
[BlackClock "0:01:05"]

1. c4 {[%clk 0:03:00]}  e6 {[%clk 0:02:58]} 2. g3 {[%clk 0:03:01]}  d5 {[%clk 0:02:58]} 3. Bg2 {[%clk 0:03:02]}  Nf6 {[%clk 0:02:58]} 4. Nf3 {[%clk 0:03:03]}  c5 {[%clk 0:02:57]} 5. O-O {[%clk 0:03:03]}  d4 {[%clk 0:02:58]} 6. e3 {[%clk 0:03:03]}  Nc6 {[%clk 0:02:58]} 7. exd4 {[%clk 0:03:03]}  cxd4 {[%clk 0:02:58]} 8. d3 {[%clk 0:03:04]}  Be7 {[%clk 0:02:55]} 9. Bg5 {[%clk 0:02:57]}  O-O {[%clk 0:02:54]} 10. Nbd2 {[%clk 0:02:57]}  Nd7 {[%clk 0:02:54]} 11. Bxe7 {[%clk 0:02:56]}  Qxe7 {[%clk 0:02:55]} 12. Qe2 {[%clk 0:02:55]}  e5 {[%clk 0:02:51]} 13. a3 {[%clk 0:02:50]}  a5 {[%clk 0:02:51]} 14. Rfe1 {[%clk 0:02:39]}  f6 {[%clk 0:02:50]} 15. Rac1 {[%clk 0:02:22]}  Nc5 {[%clk 0:02:50]} 16. Ne4 {[%clk 0:02:18]}  Nb3 {[%clk 0:02:50]} 17. Rc2 {[%clk 0:02:10]}  Bg4 {[%clk 0:02:48]} 18. c5 {[%clk 0:01:59]}  a4 {[%clk 0:02:38]} 19. h3 {[%clk 0:01:57]}  Be6 {[%clk 0:02:37]} 20. Nfd2 {[%clk 0:01:49]}  Ra5 {[%clk 0:02:34]} 21. Nc4 {[%clk 0:01:30]}  Bxc4 {[%clk 0:02:33]} 22. Rxc4 {[%clk 0:01:30]}  Nxc5 {[%clk 0:02:30]} 23. Nxc5 {[%clk 0:01:15]}  Rxc5 {[%clk 0:02:31]} 24. Rec1 {[%clk 0:01:05]}  Rxc4 {[%clk 0:02:30]} 25. Rxc4 {[%clk 0:01:06]}  Ra8 {[%clk 0:02:20]} 26. Qc2 {[%clk 0:01:00]}  h5 {[%clk 0:01:51]} 27. Bd5+ {[%clk 0:00:56]}  Kh7 {[%clk 0:01:49]} 28. Be4+ {[%clk 0:00:56]}  g6 {[%clk 0:01:45]} 29. Bxc6 {[%clk 0:00:56]}  bxc6 {[%clk 0:01:45]} 30. Rxc6 {[%clk 0:00:52]}  Ra7 {[%clk 0:01:45]} 31. Rc8 {[%clk 0:00:52]}  h4 {[%clk 0:01:42]} 32. Qc4 {[%clk 0:00:45]}  hxg3 {[%clk 0:01:34]} 33. Qg8+ {[%clk 0:00:39]}  Kh6 {[%clk 0:01:34]} 34. Qh8+ {[%clk 0:00:39]}  Kg5 {[%clk 0:01:34]} 35. fxg3 {[%clk 0:00:37]}  Qh7 {[%clk 0:01:28]} 36. h4+ {[%clk 0:00:28]}  Kf5 {[%clk 0:01:28]} 37. Qe8 {[%clk 0:00:17]}  Qf7 {[%clk 0:01:14]} 38. Qc6 {[%clk 0:00:16]}  Qb7 {[%clk 0:01:07]} 39. Qc2 {[%clk 0:00:12]}  Qf3 {[%clk 0:01:05]} 40. Qf2 {[%clk 0:00:12]}  Qxf2+ {[%clk 0:01:05]} 41. Kxf2 {[%clk 0:00:11]}  Rb7 {[%clk 0:01:06]} 42. Rc2 {[%clk 0:00:10]}  Kg4 {[%clk 0:01:06]} 43. Kg2 {[%clk 0:00:11]}  f5 {[%clk 0:01:06]} 44. Re2 {[%clk 0:00:11]}  Rb5 {[%clk 0:01:05]} 45. Kf2 {[%clk 0:00:10]}  g5 {[%clk 0:01:03]} 46. Kg2 {[%clk 0:00:10]}  gxh4 {[%clk 0:01:03]} 47. gxh4 {[%clk 0:00:11]}  Kxh4 {[%clk 0:01:03]} 48. Kf3 {[%clk 0:00:11]}  Kg5 {[%clk 0:01:04]} 49. Rg2+ {[%clk 0:00:11]}  Kf6 {[%clk 0:01:05]} 50. Rc2 {[%clk 0:00:12]}  Rb3 {[%clk 0:01:04]} 51. Ke2 {[%clk 0:00:11]}  Kg5 {[%clk 0:01:04]} 52. Kd2 {[%clk 0:00:10]}  Kf4 {[%clk 0:01:05]} 53. Ke2 {[%clk 0:00:10]}  e4 {[%clk 0:01:04]} 54. dxe4 {[%clk 0:00:07]}  d3+ {[%clk 0:01:05]} 0-1

[Event "December 19 Early 2023"]
[Site "https://www.chess.com"]
[Date "2023.12.19"]
[Round "6"]
[White "Goltseva, Ekaterina"]
[Black "Wadsworth, Matthew J"]
[Result "1-0"]
[Board "85"]
[TimeControl "180+1"]
[WhiteFideId "24173770"]
[BlackFideId "415804"]
[WhiteElo "2139"]
[BlackElo "2266"]
[WhiteTeam "RUS"]
[BlackTeam "ENG"]
[WhiteClock "0:00:18"]
[BlackClock "0:00:00"]

1. d4 {[%clk 0:03:00]}  Nf6 {[%clk 0:02:58]} 2. c4 {[%clk 0:03:00]}  c5 {[%clk 0:02:58]} 3. d5 {[%clk 0:02:59]}  e6 {[%clk 0:02:59]} 4. Nc3 {[%clk 0:02:56]}  exd5 {[%clk 0:03:00]} 5. cxd5 {[%clk 0:02:54]}  d6 {[%clk 0:03:00]} 6. e4 {[%clk 0:02:52]}  g6 {[%clk 0:03:01]} 7. Nge2 {[%clk 0:02:52]}  h5 {[%clk 0:03:00]} 8. Bg5 {[%clk 0:02:49]}  Bg7 {[%clk 0:02:57]} 9. Nc1 {[%clk 0:02:23]}  a6 {[%clk 0:02:54]} 10. a4 {[%clk 0:02:23]}  Nbd7 {[%clk 0:02:53]} 11. Be2 {[%clk 0:02:23]}  Qb6 {[%clk 0:02:43]} 12. Nd3 {[%clk 0:02:18]}  c4 {[%clk 0:02:27]} 13. a5 {[%clk 0:02:00]}  Qc7 {[%clk 0:02:23]} 14. Nb4 {[%clk 0:01:55]}  Ne5 {[%clk 0:02:06]} 15. Be3 {[%clk 0:01:46]}  Nfg4 {[%clk 0:01:58]} 16. Bb6 {[%clk 0:01:45]}  Qe7 {[%clk 0:01:55]} 17. h3 {[%clk 0:01:43]}  Nf6 {[%clk 0:01:50]} 18. O-O {[%clk 0:01:32]}  g5 {[%clk 0:01:46]} 19. Nc2 {[%clk 0:01:22]}  g4 {[%clk 0:01:42]} 20. h4 {[%clk 0:01:20]}  Nfd7 {[%clk 0:01:25]} 21. Bd4 {[%clk 0:01:02]}  Qxh4 {[%clk 0:01:20]} 22. Ne3 {[%clk 0:01:02]}  Nf8 {[%clk 0:00:56]} 23. Nxc4 {[%clk 0:00:58]}  Qe7 {[%clk 0:00:43]} 24. Qa4+ {[%clk 0:00:40]}  Bd7 {[%clk 0:00:43]} 25. Qb4 {[%clk 0:00:39]}  Nxc4 {[%clk 0:00:16]} 26. Bxg7 {[%clk 0:00:37]}  Rh7 {[%clk 0:00:10]} 27. Bxf8 {[%clk 0:00:36]}  Kxf8 {[%clk 0:00:10]} 28. Qxc4 {[%clk 0:00:34]}  h4 {[%clk 0:00:10]} 29. Qd4 {[%clk 0:00:25]}  h3 {[%clk 0:00:08]} 30. g3 {[%clk 0:00:25]}  f5 {[%clk 0:00:04]} 31. exf5 {[%clk 0:00:23]}  Bxf5 {[%clk 0:00:04]} 32. Kh2 {[%clk 0:00:21]}  Rg7 {[%clk 0:00:01]} 33. Rae1 {[%clk 0:00:21]}  Qf7 {[%clk 0:00:02]} 34. Bd3 {[%clk 0:00:19]}  Bxd3 {[%clk 0:00:01]} 35. Qxd3 {[%clk 0:00:20]}  Kg8 {[%clk 0:00:02]} 36. Re4 {[%clk 0:00:19]}  Re8 {[%clk 0:00:01]} 37. Rf4 {[%clk 0:00:18]}  Qe7 {[%clk 0:00:00]} 38. Ne4 {[%clk 0:00:18]} 1-0

[Event "December 19 Early 2023"]
[Site "https://www.chess.com"]
[Date "2023.12.19"]
[Round "6"]
[White "Buksa, Nataliya"]
[Black "Skliarov, Viktor"]
[Result "1/2-1/2"]
[Board "88"]
[TimeControl "180+1"]
[WhiteFideId "14123622"]
[BlackFideId "14106736"]
[WhiteElo "2316"]
[BlackElo "2301"]
[WhiteTeam "UKR"]
[BlackTeam "UKR"]
[WhiteClock "0:00:02"]
[BlackClock "0:00:06"]

1. d4 {[%clk 0:03:00]}  Nf6 {[%clk 0:02:59]} 2. Nc3 {[%clk 0:03:01]}  g6 {[%clk 0:02:56]} 3. e4 {[%clk 0:03:00]}  d6 {[%clk 0:02:56]} 4. f4 {[%clk 0:03:00]}  Bg7 {[%clk 0:02:56]} 5. Nf3 {[%clk 0:03:01]}  O-O {[%clk 0:02:56]} 6. Bd3 {[%clk 0:03:02]}  Bg4 {[%clk 0:02:55]} 7. h3 {[%clk 0:03:01]}  Bxf3 {[%clk 0:02:51]} 8. Qxf3 {[%clk 0:03:02]}  Nc6 {[%clk 0:02:50]} 9. Be3 {[%clk 0:02:59]}  Nd7 {[%clk 0:02:47]} 10. O-O {[%clk 0:02:56]}  Nxd4 {[%clk 0:02:46]} 11. Qf2 {[%clk 0:02:56]}  c5 {[%clk 0:02:44]} 12. Rae1 {[%clk 0:02:29]}  a6 {[%clk 0:02:40]} 13. g4 {[%clk 0:02:25]}  b5 {[%clk 0:02:39]} 14. e5 {[%clk 0:02:18]}  dxe5 {[%clk 0:02:23]} 15. Be4 {[%clk 0:02:17]}  exf4 {[%clk 0:02:14]} 16. Bxf4 {[%clk 0:02:14]}  Ra7 {[%clk 0:02:06]} 17. Kh1 {[%clk 0:01:52]}  Nf6 {[%clk 0:02:01]} 18. Bg2 {[%clk 0:01:51]}  b4 {[%clk 0:01:54]} 19. Na4 {[%clk 0:01:46]}  Qa5 {[%clk 0:01:40]} 20. b3 {[%clk 0:01:39]}  Rd7 {[%clk 0:01:39]} 21. Nb2 {[%clk 0:01:05]}  Qxa2 {[%clk 0:01:32]} 22. Nd3 {[%clk 0:01:04]}  Qxc2 {[%clk 0:01:29]} 23. Qxc2 {[%clk 0:00:32]}  Nxc2 {[%clk 0:01:30]} 24. Nxc5 {[%clk 0:00:32]}  Nxe1 {[%clk 0:01:04]} 25. Nxd7 {[%clk 0:00:31]}  Nxg2 {[%clk 0:01:04]} 26. Nxf8 {[%clk 0:00:32]}  Nxf4 {[%clk 0:01:04]} 27. Rxf4 {[%clk 0:00:32]}  Bxf8 {[%clk 0:00:45]} 28. Rxb4 {[%clk 0:00:32]}  Nd5 {[%clk 0:00:42]} 29. Ra4 {[%clk 0:00:27]}  Nc7 {[%clk 0:00:41]} 30. Rc4 {[%clk 0:00:27]}  Nd5 {[%clk 0:00:33]} 31. Ra4 {[%clk 0:00:26]}  e6 {[%clk 0:00:20]} 32. Rxa6 {[%clk 0:00:26]}  h6 {[%clk 0:00:21]} 33. Kg2 {[%clk 0:00:24]}  Kg7 {[%clk 0:00:20]} 34. Kf3 {[%clk 0:00:24]}  Kf6 {[%clk 0:00:21]} 35. Rc6 {[%clk 0:00:21]}  Bb4 {[%clk 0:00:20]} 36. Rc4 {[%clk 0:00:21]}  Ke5 {[%clk 0:00:20]} 37. Rc8 {[%clk 0:00:18]}  f5 {[%clk 0:00:19]} 38. Rh8 {[%clk 0:00:18]}  Bd2 {[%clk 0:00:19]} 39. Rd8 {[%clk 0:00:15]}  h5 {[%clk 0:00:15]} 40. gxh5 {[%clk 0:00:15]}  gxh5 {[%clk 0:00:15]} 41. Rh8 {[%clk 0:00:15]}  Nf6 {[%clk 0:00:12]} 42. Rb8 {[%clk 0:00:15]}  Ne4 {[%clk 0:00:06]} 43. b4 {[%clk 0:00:15]}  Ng5+ {[%clk 0:00:06]} 44. Ke2 {[%clk 0:00:14]}  Bf4 {[%clk 0:00:06]} 45. h4 {[%clk 0:00:14]}  Ne4 {[%clk 0:00:04]} 46. Rh8 {[%clk 0:00:11]}  Kd5 {[%clk 0:00:04]} 47. Kf3 {[%clk 0:00:10]}  Be5 {[%clk 0:00:03]} 48. Rxh5 {[%clk 0:00:10]}  Nf6 {[%clk 0:00:04]} 49. Rh8 {[%clk 0:00:09]}  Kc4 {[%clk 0:00:04]} 50. h5 {[%clk 0:00:09]}  Kxb4 {[%clk 0:00:04]} 51. h6 {[%clk 0:00:09]}  Kc4 {[%clk 0:00:03]} 52. h7 {[%clk 0:00:09]}  Nxh7 {[%clk 0:00:04]} 53. Rxh7 {[%clk 0:00:10]}  Kd5 {[%clk 0:00:04]} 54. Rd7+ {[%clk 0:00:09]}  Bd6 {[%clk 0:00:05]} 55. Ra7 {[%clk 0:00:10]}  e5 {[%clk 0:00:05]} 56. Ra5+ {[%clk 0:00:10]}  Ke6 {[%clk 0:00:05]} 57. Ke3 {[%clk 0:00:09]}  Be7 {[%clk 0:00:04]} 58. Ra6+ {[%clk 0:00:09]}  Bd6 {[%clk 0:00:05]} 59. Ra5 {[%clk 0:00:09]}  Kf6 {[%clk 0:00:05]} 60. Ra6 {[%clk 0:00:08]}  Ke7 {[%clk 0:00:05]} 61. Ra7+ {[%clk 0:00:08]}  Ke6 {[%clk 0:00:05]} 62. Ra6 {[%clk 0:00:08]}  Ke7 {[%clk 0:00:05]} 63. Ra7+ {[%clk 0:00:08]}  Ke6 {[%clk 0:00:06]} 64. Ra6 {[%clk 0:00:09]}  Kd5 {[%clk 0:00:05]} 65. Ra5+ {[%clk 0:00:07]}  Bc5+ {[%clk 0:00:06]} 66. Kf3 {[%clk 0:00:08]}  Kd4 {[%clk 0:00:05]} 67. Ra4+ {[%clk 0:00:07]}  Kd3 {[%clk 0:00:05]} 68. Ra5 {[%clk 0:00:07]}  Bd4 {[%clk 0:00:05]} 69. Kg2 {[%clk 0:00:05]}  Ke4 {[%clk 0:00:04]} 70. Ra1 {[%clk 0:00:03]}  f4 {[%clk 0:00:05]} 71. Re1+ {[%clk 0:00:04]}  Be3 {[%clk 0:00:05]} 72. Ra1 {[%clk 0:00:02]}  f3+ {[%clk 0:00:04]} 73. Kg3 {[%clk 0:00:02]}  Bf4+ {[%clk 0:00:05]} 74. Kf2 {[%clk 0:00:03]}  Be3+ {[%clk 0:00:05]} 75. Kg3 {[%clk 0:00:03]}  Bd4 {[%clk 0:00:06]} 76. Re1+ {[%clk 0:00:02]}  Be3 {[%clk 0:00:06]} 77. Ra1 {[%clk 0:00:02]} 1/2-1/2

[Event "December 19 Early 2023"]
[Site "https://www.chess.com"]
[Date "2023.12.19"]
[Round "6"]
[White "Rakhimgaliyev, Yerlan"]
[Black "Fromm, Marius"]
[Result "0-1"]
[Board "89"]
[TimeControl "180+1"]
[WhiteFideId "13705148"]
[BlackFideId "12993190"]
[WhiteElo "2261"]
[BlackElo "2335"]
[WhiteTeam "KAZ"]
[BlackTeam "GER"]
[WhiteClock "0:00:11"]
[BlackClock "0:01:05"]

1. e4 {[%clk 0:03:00]}  c5 {[%clk 0:03:00]} 2. c3 {[%clk 0:02:57]}  d5 {[%clk 0:02:59]} 3. exd5 {[%clk 0:02:51]}  Qxd5 {[%clk 0:03:00]} 4. d4 {[%clk 0:02:51]}  Nf6 {[%clk 0:03:01]} 5. Nf3 {[%clk 0:02:48]}  e6 {[%clk 0:03:01]} 6. Be2 {[%clk 0:02:48]}  cxd4 {[%clk 0:02:58]} 7. cxd4 {[%clk 0:02:47]}  Nc6 {[%clk 0:02:58]} 8. Nc3 {[%clk 0:02:46]}  Qd7 {[%clk 0:02:58]} 9. O-O {[%clk 0:02:42]}  Be7 {[%clk 0:02:59]} 10. Bb5 {[%clk 0:02:24]}  O-O {[%clk 0:02:58]} 11. Ne5 {[%clk 0:02:23]}  Qc7 {[%clk 0:02:57]} 12. Bxc6 {[%clk 0:02:15]}  bxc6 {[%clk 0:02:58]} 13. Qa4 {[%clk 0:02:15]}  c5 {[%clk 0:02:36]} 14. Bf4 {[%clk 0:01:49]}  cxd4 {[%clk 0:02:04]} 15. Nb5 {[%clk 0:01:39]}  Qb6 {[%clk 0:01:57]} 16. Rac1 {[%clk 0:01:31]}  Ba6 {[%clk 0:01:46]} 17. Rc6 {[%clk 0:01:05]}  Bxb5 {[%clk 0:01:41]} 18. Rxb6 {[%clk 0:01:05]}  Bxa4 {[%clk 0:01:41]} 19. Rb7 {[%clk 0:01:06]}  Bd6 {[%clk 0:01:40]} 20. b3 {[%clk 0:01:02]}  Bxe5 {[%clk 0:01:37]} 21. Bxe5 {[%clk 0:01:01]}  Bc6 {[%clk 0:01:36]} 22. Rc7 {[%clk 0:01:01]}  Rfc8 {[%clk 0:01:30]} 23. Rxc8+ {[%clk 0:00:55]}  Rxc8 {[%clk 0:01:31]} 24. Bxd4 {[%clk 0:00:56]}  a6 {[%clk 0:01:32]} 25. f3 {[%clk 0:00:52]}  Nd5 {[%clk 0:01:31]} 26. Rc1 {[%clk 0:00:38]}  Bb7 {[%clk 0:01:31]} 27. Bc5 {[%clk 0:00:37]}  Nb4 {[%clk 0:01:25]} 28. Rd1 {[%clk 0:00:24]}  Nxa2 {[%clk 0:01:16]} 29. Rd7 {[%clk 0:00:24]}  Bd5 {[%clk 0:01:16]} 30. Ra7 {[%clk 0:00:24]}  h5 {[%clk 0:01:12]} 31. b4 {[%clk 0:00:24]}  Bc4 {[%clk 0:01:10]} 32. Kf2 {[%clk 0:00:23]}  Bb5 {[%clk 0:01:10]} 33. Ke3 {[%clk 0:00:23]}  Rd8 {[%clk 0:01:09]} 34. h4 {[%clk 0:00:21]}  Nc3 {[%clk 0:01:07]} 35. Be7 {[%clk 0:00:18]}  Rd3+ {[%clk 0:01:06]} 36. Kf4 {[%clk 0:00:15]}  Nd5+ {[%clk 0:01:06]} 37. Kg5 {[%clk 0:00:15]}  Nxe7 {[%clk 0:01:05]} 38. Rxe7 {[%clk 0:00:11]}  Rd5+ {[%clk 0:01:05]} 0-1

[Event "December 19 Early 2023"]
[Site "https://www.chess.com"]
[Date "2023.12.19"]
[Round "6"]
[White "Karttunen, Mika"]
[Black "Mohammadi, Melika"]
[Result "1-0"]
[Board "90"]
[TimeControl "180+1"]
[WhiteFideId "502081"]
[BlackFideId "42529271"]
[WhiteElo "2396"]
[BlackElo "1901"]
[WhiteTeam "FIN"]
[BlackTeam "IRI"]
[WhiteClock "0:00:54"]
[BlackClock "0:00:30"]

1. e4 {[%clk 0:03:00]}  e5 {[%clk 0:02:59]} 2. Nc3 {[%clk 0:03:00]}  Nf6 {[%clk 0:02:59]} 3. Bc4 {[%clk 0:02:56]}  Nxe4 {[%clk 0:02:58]} 4. Qh5 {[%clk 0:02:43]}  Nd6 {[%clk 0:02:55]} 5. Qxe5+ {[%clk 0:02:43]}  Qe7 {[%clk 0:02:52]} 6. Qxe7+ {[%clk 0:02:37]}  Bxe7 {[%clk 0:02:52]} 7. Be2 {[%clk 0:02:33]}  c6 {[%clk 0:02:40]} 8. h4 {[%clk 0:02:31]}  Nf5 {[%clk 0:02:39]} 9. h5 {[%clk 0:02:29]}  d5 {[%clk 0:02:34]} 10. Nf3 {[%clk 0:02:22]}  h6 {[%clk 0:02:28]} 11. g4 {[%clk 0:02:20]}  Nd6 {[%clk 0:02:25]} 12. Ne5 {[%clk 0:02:15]}  d4 {[%clk 0:02:11]} 13. Na4 {[%clk 0:01:54]}  Nd7 {[%clk 0:01:54]} 14. Nxd7 {[%clk 0:01:48]}  Bxd7 {[%clk 0:01:54]} 15. Nc5 {[%clk 0:01:48]}  Bc8 {[%clk 0:01:54]} 16. d3 {[%clk 0:01:45]}  O-O {[%clk 0:01:47]} 17. f4 {[%clk 0:01:42]}  Re8 {[%clk 0:01:44]} 18. Kf2 {[%clk 0:01:38]}  b6 {[%clk 0:01:43]} 19. Ne4 {[%clk 0:01:38]}  c5 {[%clk 0:01:38]} 20. Nxd6 {[%clk 0:01:31]}  Bxd6 {[%clk 0:01:36]} 21. Bf3 {[%clk 0:01:32]}  Rb8 {[%clk 0:01:36]} 22. Bd2 {[%clk 0:01:30]}  Bb7 {[%clk 0:01:32]} 23. Rhe1 {[%clk 0:01:29]}  Bxf3 {[%clk 0:01:28]} 24. Kxf3 {[%clk 0:01:29]}  f6 {[%clk 0:01:21]} 25. Re4 {[%clk 0:01:25]}  Kf7 {[%clk 0:01:17]} 26. Rae1 {[%clk 0:01:22]}  Rxe4 {[%clk 0:01:12]} 27. Rxe4 {[%clk 0:01:21]}  Rd8 {[%clk 0:01:02]} 28. g5 {[%clk 0:00:55]}  fxg5 {[%clk 0:00:56]} 29. fxg5 {[%clk 0:00:55]}  hxg5 {[%clk 0:00:56]} 30. Bxg5 {[%clk 0:00:55]}  b5 {[%clk 0:00:30]} 31. Bxd8 {[%clk 0:00:54]} 1-0

[Event "December 19 Early 2023"]
[Site "https://www.chess.com"]
[Date "2023.12.19"]
[Round "6"]
[White "Bazilius, Augustinas"]
[Black "Omelja, Artem"]
[Result "1-0"]
[Board "91"]
[TimeControl "180+1"]
[WhiteFideId "12832251"]
[BlackFideId "14119846"]
[WhiteElo "2082"]
[BlackElo "2404"]
[WhiteTeam "LTU"]
[BlackTeam "UKR"]
[WhiteClock "0:00:09"]
[BlackClock "0:00:19"]

1. d4 {[%clk 0:03:00]}  d5 {[%clk 0:02:59]} 2. c4 {[%clk 0:03:00]}  c6 {[%clk 0:02:52]} 3. Nf3 {[%clk 0:03:00]}  e6 {[%clk 0:02:53]} 4. g3 {[%clk 0:03:00]}  dxc4 {[%clk 0:02:53]} 5. Ne5 {[%clk 0:03:00]}  b5 {[%clk 0:02:52]} 6. Bg2 {[%clk 0:03:00]}  Bb7 {[%clk 0:02:52]} 7. b3 {[%clk 0:02:58]}  cxb3 {[%clk 0:02:52]} 8. axb3 {[%clk 0:02:59]}  Nf6 {[%clk 0:02:48]} 9. O-O {[%clk 0:02:57]}  Be7 {[%clk 0:02:48]} 10. Nc3 {[%clk 0:02:52]}  a6 {[%clk 0:02:47]} 11. Bg5 {[%clk 0:02:47]}  O-O {[%clk 0:02:45]} 12. Bxf6 {[%clk 0:02:42]}  Bxf6 {[%clk 0:02:44]} 13. Ne4 {[%clk 0:02:39]}  Be7 {[%clk 0:02:37]} 14. Rc1 {[%clk 0:02:32]}  f6 {[%clk 0:02:18]} 15. Nf3 {[%clk 0:01:09]}  Nd7 {[%clk 0:02:16]} 16. Qc2 {[%clk 0:00:37]}  a5 {[%clk 0:02:04]} 17. Rfd1 {[%clk 0:00:30]}  Qc7 {[%clk 0:01:39]} 18. Bh3 {[%clk 0:00:25]}  Kf7 {[%clk 0:01:29]} 19. Neg5+ {[%clk 0:00:12]}  fxg5 {[%clk 0:01:24]} 20. Qxh7 {[%clk 0:00:12]}  Bf6 {[%clk 0:01:17]} 21. d5 {[%clk 0:00:09]}  exd5 {[%clk 0:01:07]} 22. Rxd5 {[%clk 0:00:09]}  Nb6 {[%clk 0:01:06]} 23. Nxg5+ {[%clk 0:00:08]}  Bxg5 {[%clk 0:00:45]} 24. Rxg5 {[%clk 0:00:09]}  Rg8 {[%clk 0:00:36]} 25. Rc3 {[%clk 0:00:07]}  Nd7 {[%clk 0:00:16]} 26. Qg6+ {[%clk 0:00:03]}  Kf8 {[%clk 0:00:08]} 27. Bxd7 {[%clk 0:00:02]}  Qxd7 {[%clk 0:00:08]} 28. Rf3+ {[%clk 0:00:02]}  Ke7 {[%clk 0:00:08]} 29. Rf7+ {[%clk 0:00:03]}  Kd8 {[%clk 0:00:08]} 30. Rxd7+ {[%clk 0:00:03]}  Kxd7 {[%clk 0:00:09]} 31. Qf7+ {[%clk 0:00:04]}  Kd6 {[%clk 0:00:10]} 32. Qxb7 {[%clk 0:00:03]}  g6 {[%clk 0:00:09]} 33. Qf7 {[%clk 0:00:03]}  Rae8 {[%clk 0:00:08]} 34. Rxg6+ {[%clk 0:00:04]}  Rxg6 {[%clk 0:00:09]} 35. Qxg6+ {[%clk 0:00:04]}  Re6 {[%clk 0:00:10]} 36. Qd3+ {[%clk 0:00:04]}  Kc7 {[%clk 0:00:10]} 37. h4 {[%clk 0:00:04]}  Rd6 {[%clk 0:00:11]} 38. Qc2 {[%clk 0:00:04]}  Rd4 {[%clk 0:00:11]} 39. h5 {[%clk 0:00:05]}  a4 {[%clk 0:00:11]} 40. bxa4 {[%clk 0:00:04]}  Rxa4 {[%clk 0:00:12]} 41. h6 {[%clk 0:00:04]}  Ra8 {[%clk 0:00:12]} 42. h7 {[%clk 0:00:04]}  Rh8 {[%clk 0:00:12]} 43. Qg6 {[%clk 0:00:04]}  Kb6 {[%clk 0:00:12]} 44. Qg7 {[%clk 0:00:03]}  Rxh7 {[%clk 0:00:12]} 45. Qxh7 {[%clk 0:00:04]}  b4 {[%clk 0:00:12]} 46. Qb1 {[%clk 0:00:05]}  c5 {[%clk 0:00:13]} 47. g4 {[%clk 0:00:05]}  Kb5 {[%clk 0:00:14]} 48. g5 {[%clk 0:00:06]}  c4 {[%clk 0:00:15]} 49. g6 {[%clk 0:00:07]}  c3 {[%clk 0:00:16]} 50. g7 {[%clk 0:00:07]}  Kc4 {[%clk 0:00:17]} 51. g8=Q+ {[%clk 0:00:07]}  Kb5 {[%clk 0:00:17]} 52. Qgb3 {[%clk 0:00:08]}  Ka6 {[%clk 0:00:18]} 53. Qxb4 {[%clk 0:00:08]}  Ka7 {[%clk 0:00:19]} 54. Qb6+ {[%clk 0:00:08]}  Ka8 {[%clk 0:00:19]} 55. Qb7# {[%clk 0:00:09]} 1-0

[Event "December 19 Early 2023"]
[Site "https://www.chess.com"]
[Date "2023.12.19"]
[Round "6"]
[White "Golubev, Mikhail"]
[Black "Sahin, Sarp"]
[Result "1-0"]
[Board "92"]
[TimeControl "180+1"]
[WhiteFideId "14100983"]
[BlackFideId "51605066"]
[WhiteElo "2352"]
[BlackElo "1775"]
[WhiteTeam "UKR"]
[BlackTeam "TUR"]
[WhiteClock "0:00:44"]
[BlackClock "0:00:20"]

1. e4 {[%clk 0:02:44]}  c6 {[%clk 0:02:57]} 2. Nf3 {[%clk 0:02:43]}  d5 {[%clk 0:02:58]} 3. Nc3 {[%clk 0:02:43]}  Bg4 {[%clk 0:02:55]} 4. h3 {[%clk 0:02:42]}  Bxf3 {[%clk 0:02:54]} 5. Qxf3 {[%clk 0:02:42]}  e6 {[%clk 0:02:52]} 6. g3 {[%clk 0:02:41]}  Nf6 {[%clk 0:02:52]} 7. Bg2 {[%clk 0:02:41]}  Be7 {[%clk 0:02:49]} 8. O-O {[%clk 0:02:39]}  Nbd7 {[%clk 0:02:47]} 9. d4 {[%clk 0:02:34]}  dxe4 {[%clk 0:02:45]} 10. Nxe4 {[%clk 0:02:35]}  Nxe4 {[%clk 0:02:44]} 11. Qxe4 {[%clk 0:02:36]}  O-O {[%clk 0:02:44]} 12. c3 {[%clk 0:02:27]}  Nf6 {[%clk 0:02:38]} 13. Qe2 {[%clk 0:02:27]}  Rc8 {[%clk 0:02:34]} 14. Bd2 {[%clk 0:02:20]}  a5 {[%clk 0:02:29]} 15. Rad1 {[%clk 0:02:16]}  Nd5 {[%clk 0:02:27]} 16. c4 {[%clk 0:02:05]}  Nf6 {[%clk 0:02:07]} 17. a3 {[%clk 0:02:04]}  Qxd4 {[%clk 0:02:02]} 18. Bxa5 {[%clk 0:02:01]}  Qa7 {[%clk 0:02:00]} 19. Qd2 {[%clk 0:01:50]}  Bc5 {[%clk 0:01:52]} 20. Bc3 {[%clk 0:01:47]}  Be7 {[%clk 0:01:49]} 21. Bd4 {[%clk 0:01:43]}  Qa6 {[%clk 0:01:47]} 22. Qc2 {[%clk 0:01:34]}  Rfd8 {[%clk 0:01:45]} 23. Be3 {[%clk 0:01:34]}  h6 {[%clk 0:01:36]} 24. Rfe1 {[%clk 0:01:29]}  b5 {[%clk 0:01:24]} 25. Bf1 {[%clk 0:01:19]}  Qb7 {[%clk 0:01:17]} 26. cxb5 {[%clk 0:01:04]}  cxb5 {[%clk 0:01:18]} 27. Qb3 {[%clk 0:01:04]}  b4 {[%clk 0:01:11]} 28. a4 {[%clk 0:01:02]}  Ne4 {[%clk 0:00:49]} 29. Bg2 {[%clk 0:00:55]}  Kh8 {[%clk 0:00:34]} 30. a5 {[%clk 0:00:52]}  f5 {[%clk 0:00:32]} 31. Qxe6 {[%clk 0:00:48]}  Rxd1 {[%clk 0:00:32]} 32. Rxd1 {[%clk 0:00:48]}  Bf8 {[%clk 0:00:20]} 33. Qxf5 {[%clk 0:00:44]} 1-0

[Event "December 19 Early 2023"]
[Site "https://www.chess.com"]
[Date "2023.12.19"]
[Round "6"]
[White "Boyer, Mahel"]
[Black "Balint, Vilmos"]
[Result "1-0"]
[Board "93"]
[TimeControl "180+1"]
[WhiteFideId "45102422"]
[BlackFideId "718050"]
[WhiteElo "2449"]
[BlackElo "2139"]
[WhiteTeam "FRA"]
[BlackTeam "HUN"]
[WhiteClock "0:00:31"]
[BlackClock "0:02:09"]

1. e4 {[%clk 0:03:00]}  e6 {[%clk 0:02:57]} 2. c4 {[%clk 0:03:00]}  d5 {[%clk 0:02:57]} 3. cxd5 {[%clk 0:03:01]}  exd5 {[%clk 0:02:58]} 4. exd5 {[%clk 0:03:01]}  Nf6 {[%clk 0:02:58]} 5. Nc3 {[%clk 0:02:58]}  Nxd5 {[%clk 0:02:58]} 6. Nf3 {[%clk 0:02:59]}  Be7 {[%clk 0:02:58]} 7. d4 {[%clk 0:02:36]}  O-O {[%clk 0:02:55]} 8. Bd3 {[%clk 0:02:36]}  c5 {[%clk 0:02:54]} 9. O-O {[%clk 0:02:34]}  Nxc3 {[%clk 0:02:54]} 10. bxc3 {[%clk 0:02:34]}  cxd4 {[%clk 0:02:54]} 11. cxd4 {[%clk 0:02:34]}  h6 {[%clk 0:02:55]} 12. Qe2 {[%clk 0:02:31]}  Re8 {[%clk 0:02:54]} 13. Qe4 {[%clk 0:02:31]}  f5 {[%clk 0:02:49]} 14. Bc4+ {[%clk 0:02:25]}  Kh7 {[%clk 0:02:47]} 15. Qd3 {[%clk 0:02:13]}  Nc6 {[%clk 0:02:47]} 16. Bf4 {[%clk 0:02:06]}  Bf6 {[%clk 0:02:47]} 17. Rfe1 {[%clk 0:02:05]}  Rxe1+ {[%clk 0:02:44]} 18. Rxe1 {[%clk 0:02:06]}  Nxd4 {[%clk 0:02:44]} 19. Ne5 {[%clk 0:01:58]}  Be6 {[%clk 0:02:25]} 20. Bxe6 {[%clk 0:01:17]}  Bxe5 {[%clk 0:02:25]} 21. Bxf5+ {[%clk 0:01:15]}  g6 {[%clk 0:02:17]} 22. Bxg6+ {[%clk 0:00:46]}  Kg8 {[%clk 0:02:14]} 23. Bxe5 {[%clk 0:00:47]}  Ne6 {[%clk 0:02:11]} 24. Bh7+ {[%clk 0:00:34]}  Kf8 {[%clk 0:02:11]} 25. Qg6 {[%clk 0:00:35]}  Qe7 {[%clk 0:02:09]} 26. Qg8# {[%clk 0:00:31]} 1-0